fUST/lending_fUST_20260417
["ID","MTS","AMOUNT","RATE_DAILY","PERIOD"]
[420623843,1776358246294,-500.0,8.767e-05,2]
[420623844,1776358246305,-500.0,8.767e-05,2]
[420623845,1776358246314,-500.0,8.767e-05,2]
[420623846,1776358246324,-798.21,8.767e-05,2]
[420623847,1776358246335,-500.0,8.767e-05,2]
[420623848,1776358246345,-500.0,8.767e-05,2]
[420623849,1776358246354,-500.0,8.767e-05,2]
[420623850,1776358246363,-1876.94,8.767e-05,2]
[420623851,1776358246372,-500.0,8.767e-05,2]
[420623852,1776358246382,-500.0,8.767e-05,2]
[420623853,1776358246392,-962.05,8.767e-05,2]
[420623854,1776358246405,-500.0,8.767e-05,2]
[420623855,1776358246414,-500.0,8.767e-05,2]
[420623856,1776358246424,-500.0,8.767e-05,2]
[420623857,1776358246434,-500.0,8.767e-05,2]
[420623858,1776358246443,-500.0,8.767e-05,2]
[420623859,1776358246452,-828.4,8.767e-05,2]
[420623860,1776358246462,-500.0,8.767e-05,2]
[420623861,1776358246471,-860.3,8.767e-05,2]
[420623862,1776358246481,-500.0,8.767e-05,2]
[420623863,1776358246491,-500.0,8.767e-05,2]
[420623864,1776358246500,-2039.53,8.767e-05,2]
[420623865,1776358246509,-500.0,8.767e-05,2]
[420623866,1776358246518,-500.0,8.767e-05,2]
[420623867,1776358246528,-500.0,8.767e-05,2]
[420623868,1776358246537,-594.52,8.767e-05,2]
[420623869,1776358246546,-500.0,8.767e-05,2]
[420623870,1776358246555,-636.71,8.767e-05,2]
[420623871,1776358246565,-500.0,8.767e-05,2]
[420623872,1776358246574,-500.0,8.767e-05,2]
[420623873,1776358246584,-1372.88,8.767e-05,2]
[420623874,1776358246593,-883.23,8.767e-05,2]
[420623875,1776358246603,-607.0,8.767e-05,2]
[420623876,1776358246612,-500.0,8.767e-05,2]
[420623877,1776358246622,-500.0,8.767e-05,2]
[420623878,1776358246632,-692.78,8.767e-05,2]
[420623879,1776358246641,-612.91,8.767e-05,2]
[420623880,1776358246650,-500.0,8.767e-05,2]
[420623881,1776358246660,-500.0,8.767e-05,2]
[420623882,1776358246669,-610.0,8.767e-05,2]
[420623883,1776358246679,-3117.88,8.767e-05,2]
[420623884,1776358246688,-500.0,8.767e-05,2]
[420623885,1776358246697,-473.24753866,8.767e-05,2]
[420623886,1776358246707,-655.7,8.767e-05,2]
[420623887,1776358246716,-500.0,8.767e-05,2]
[420623888,1776358246726,-919.76,8.767e-05,2]
[420623889,1776358246735,-501.6,8.767e-05,2]
[420623890,1776358246744,-674.97,8.767e-05,2]
[420623891,1776358246754,-500.0,8.767e-05,2]
[420623892,1776358246763,-500.0,8.767e-05,2]
[420623893,1776358246773,-500.0,8.767e-05,2]
[420623894,1776358246782,-500.0,8.767e-05,2]
[420623895,1776358246791,-1422.07,8.767e-05,2]
[420623896,1776358246800,-2979.1,8.767e-05,2]
[420623897,1776358246810,-7186.17,8.767e-05,2]
[420623898,1776358246820,-796.5,8.767e-05,2]
[420623899,1776358246829,-266.27190438,8.767e-05,2]
[420623900,1776358246839,-500.0,8.767e-05,2]
[420623901,1776358246849,-523.4,8.767e-05,2]
[420623902,1776358246859,-2322.29,8.767e-05,2]
[420623903,1776358246869,-500.0,8.767e-05,2]
[420623904,1776358246878,-564.69,8.767e-05,2]
[420623905,1776358246888,-151.169722,8.767e-05,2]
[420623906,1776358246898,-151.169722,8.767e-05,2]
[420623907,1776358246907,-2031.22,8.767e-05,2]
[420623908,1776358246917,-151.169722,8.767e-05,2]
[420623909,1776358246927,-500.0,8.767e-05,2]
[420623910,1776358246937,-151.169722,8.767e-05,2]
[420623912,1776358246947,-9641.47,8.767e-05,2]
[420623914,1776358246956,-500.0,8.767e-05,2]
[420623916,1776358246966,-598.99,8.767e-05,2]
[420623917,1776358246976,-500.0,8.767e-05,2]
[420623919,1776358246986,-500.0,8.767e-05,2]
[420623921,1776358246996,-8211.6,8.767e-05,2]
[420623922,1776358247005,-500.0,8.767e-05,2]
[420623923,1776358247015,-709.99,8.767e-05,2]
[420623924,1776358247024,-500.0,8.767e-05,2]
[420623925,1776358247033,-1044.71,8.767e-05,2]
[420623926,1776358247043,-500.0,8.767e-05,2]
[420623928,1776358247052,-373.14,8.767e-05,2]
[420623929,1776358247062,-500.0,8.767e-05,2]
[420623930,1776358247072,-500.0,8.767e-05,2]
[420623931,1776358247081,-500.0,8.767e-05,2]
[420623932,1776358247091,-500.0,8.767e-05,2]
[420623933,1776358247101,-1218.24,8.767e-05,2]
[420623934,1776358247111,-4372.17,8.767e-05,2]
[420623935,1776358247121,-603.56,8.767e-05,2]
[420623936,1776358247131,-500.0,8.767e-05,2]
[420623937,1776358247140,-500.0,8.767e-05,2]
[420623938,1776358247150,-500.0,8.767e-05,2]
[420623939,1776358247159,-500.0,8.767e-05,2]
[420623940,1776358247169,-972.16,8.767e-05,2]
[420623941,1776358247179,-500.0,8.767e-05,2]
[420623942,1776358247189,-2738.38,8.767e-05,2]
[420623943,1776358247199,-1527.55,8.767e-05,2]
[420623944,1776358247208,-786.85,8.767e-05,2]
[420623945,1776358247218,-2239.53,8.767e-05,2]
[420623946,1776358247227,-3800.1,8.767e-05,2]
[420623947,1776358247236,-500.0,8.767e-05,2]
[420623948,1776358247246,-544.75,8.767e-05,2]
[420623949,1776358247255,-4079.33,8.767e-05,2]
[420623950,1776358247265,-601.57,8.767e-05,2]
[420623951,1776358247274,-4722.53,8.767e-05,2]
[420623952,1776358247284,-7023.45,8.767e-05,2]
[420623953,1776358247294,-4609.71,8.767e-05,2]
[420623954,1776358247303,-32961.44,8.767e-05,2]
[420623955,1776358247313,-500.0,8.767e-05,2]
[420623956,1776358247322,-1509.86,8.767e-05,2]
[420623957,1776358247332,-500.0,8.767e-05,2]
[420623958,1776358247342,-2955.21,8.767e-05,2]
[420623959,1776358247351,-500.0,8.767e-05,2]
[420623960,1776358247360,-500.0,8.767e-05,2]
[420623961,1776358247369,-500.0,8.767e-05,2]
[420623962,1776358247379,-7024.42,8.767e-05,2]
[420623963,1776358247388,-4961.06,8.767e-05,2]
[420623964,1776358247398,-1398.84,8.767e-05,2]
[420623965,1776358247407,-9196.9,8.767e-05,2]
[420623966,1776358247416,-1126.65,8.767e-05,2]
[420623967,1776358247426,-500.0,8.767e-05,2]
[420623968,1776358247435,-500.0,8.767e-05,2]
[420623969,1776358247444,-500.0,8.767e-05,2]
[420623970,1776358247453,-500.0,8.767e-05,2]
[420623971,1776358247463,-1764.32,8.767e-05,2]
[420623972,1776358247472,-500.0,8.767e-05,2]
[420623973,1776358247482,-16833.05,8.767e-05,2]
[420623974,1776358247491,-500.0,8.767e-05,2]
[420623975,1776358247500,-937.66,8.767e-05,2]
[420623976,1776358247509,-9690.62,8.767e-05,2]
[420623977,1776358247519,-1846.86,8.767e-05,2]
[420623978,1776358247528,-11664.25,8.767e-05,2]
[420623979,1776358247537,-500.0,8.767e-05,2]
[420623980,1776358247546,-500.0,8.767e-05,2]
[420623981,1776358247556,-889.07,8.767e-05,2]
[420623982,1776358247566,-500.0,8.767e-05,2]
[420623983,1776358247575,-2104.83,8.767e-05,2]
[420623984,1776358247584,-1240.85,8.767e-05,2]
[420623985,1776358247593,-543.88,8.767e-05,2]
[420623986,1776358247603,-500.0,8.767e-05,2]
[420623987,1776358247612,-890.09,8.767e-05,2]
[420623988,1776358247621,-500.0,8.767e-05,2]
[420623989,1776358247631,-9257.35,8.767e-05,2]
[420623990,1776358247640,-500.0,8.767e-05,2]
[420623991,1776358247650,-9494.17,8.767e-05,2]
[420623992,1776358247659,-835.3,8.767e-05,2]
[420623993,1776358247668,-581.3393,8.767e-05,2]
[420623994,1776358247679,-500.0,8.767e-05,2]
[420623995,1776358247688,-500.0,8.767e-05,2]
[420623996,1776358247697,-1328.13,8.767e-05,2]
[420623997,1776358247706,-2206.93,8.767e-05,2]
[420623998,1776358247716,-10386.06,8.767e-05,2]
[420623999,1776358247726,-500.0,8.767e-05,2]
[420624000,1776358247735,-500.0,8.767e-05,2]
[420624001,1776358247745,-500.0,8.767e-05,2]
[420624002,1776358247755,-500.0,8.767e-05,2]
[420624003,1776358247764,-4279.68,8.767e-05,2]
[420624004,1776358247775,-500.0,8.767e-05,2]
[420624005,1776358247785,-155.0,8.783e-05,2]
[420624006,1776358247795,-155.0,8.834e-05,2]
[420624007,1776358247804,-155.0,8.886e-05,2]
[420624008,1776358247814,-2312.83697232,8.893e-05,2]
[420624009,1776358247824,-155.0,8.937e-05,2]
[420624010,1776358247834,-155.0,8.988e-05,2]
[420624011,1776358247843,-5980.47046039,9e-05,2]
[420624012,1776358247852,-5000.0,9e-05,2]
[420624013,1776358247862,-5000.0,9e-05,2]
[420624014,1776358247871,-5000.0,9e-05,2]
[420624015,1776358247880,-5000.0,9e-05,2]
[420624016,1776358247890,-902.1720341,9e-05,2]
[420624017,1776358247899,-8807.63401001,9e-05,2]
[420624018,1776358247909,-5000.0,9e-05,2]
[420624019,1776358247918,-393.0,9e-05,2]
[420624020,1776358247927,-3000.0,9.01e-05,30]
[420624021,1776358247937,-3000.0,9.02e-05,30]
[420624022,1776358247946,-335.83004427,9.021e-05,2]
[420624023,1776358247956,-1000.0,9.021e-05,2]
[420624024,1776358247965,-151.169722,9.021e-05,2]
[420624025,1776358247974,-151.169722,9.021e-05,2]
[420624026,1776358247984,-151.169722,9.021e-05,2]
[420624027,1776358247993,-151.169722,9.021e-05,2]
[420624028,1776358248003,-3000.0,9.03e-05,30]
[420624029,1776358248012,-155.0,9.04e-05,2]
[420624030,1776358248022,-4567.598885,9.04e-05,30]
[420624031,1776358248031,-666.2779,9.041e-05,2]
[420624032,1776358248040,-720.8516,9.041e-05,2]
[420624033,1776358248050,-508.84207456,9.041e-05,2]
[420624034,1776358248059,-500.0,9.041e-05,2]
[420624035,1776358248068,-1000.0,9.041e-05,2]
[420624036,1776358248078,-500.0,9.041e-05,2]
[420624037,1776358248087,-500.0,9.041e-05,2]
[420624038,1776358248096,-500.0,9.041e-05,2]
[420624039,1776358248106,-500.0,9.041e-05,2]
[420624040,1776358248115,-500.0,9.041e-05,2]
[420624041,1776358248125,-500.0,9.041e-05,2]
[420624042,1776358248135,-1205.63,9.041e-05,2]
[420624043,1776358248144,-500.0,9.041e-05,2]
[420624044,1776358248154,-500.0,9.041e-05,2]
[420624045,1776358248164,-500.0,9.041e-05,2]
[420624046,1776358248173,-500.0,9.041e-05,2]
[420624047,1776358248183,-1594.5,9.041e-05,2]
[420624048,1776358248192,-500.0,9.041e-05,2]
[420624049,1776358248202,-573.79,9.041e-05,2]
[420624050,1776358248211,-574.49,9.041e-05,2]
[420624051,1776358248222,-633.22,9.041e-05,2]
[420624052,1776358248231,-1443.7556076,9.041e-05,2]
[420624053,1776358248706,-500.0,8.193e-05,2]
[420624054,1776358248715,-1000.0,8.741e-05,2]
[420624055,1776358248724,-131.0,9.041e-05,2]
[420624056,1776358248736,-109.3043924,9.041e-05,2]
[420624057,1776358248745,-1184.33,9.041e-05,2]
[420624058,1776358248754,-500.0,9.041e-05,2]
[420624059,1776358248764,-645.36,9.041e-05,2]
[420624060,1776358248773,-1056.27,9.041e-05,2]
[420624061,1776358248783,-500.0,9.041e-05,2]
[420624062,1776358248792,-937.43,9.041e-05,2]
[420624063,1776358248801,-500.0,9.041e-05,2]
[420624064,1776358248811,-1428.48,9.041e-05,2]
[420624065,1776358248820,-500.0,9.041e-05,2]
[420624066,1776358248829,-696.79,9.041e-05,2]
[420624067,1776358248992,-500.0,9.041e-05,2]
[420624068,1776358249003,-500.0,9.041e-05,2]
[420624069,1776358249012,-500.0,9.041e-05,2]
[420624070,1776358249022,-500.0,9.041e-05,2]
[420624071,1776358249031,-1847.16,9.041e-05,2]
[420624072,1776358249041,-500.0,9.041e-05,2]
[420624073,1776358249051,-236.62908319,9.041e-05,2]
[420624074,1776358249242,-263.37091681,9.041e-05,2]
[420624075,1776358249252,-1481.45,9.041e-05,2]
[420624076,1776358249261,-372.51105651,9.041e-05,2]
[420624077,1776358249273,-127.48894349,9.041e-05,2]
[420624078,1776358249283,-641.15,9.041e-05,2]
[420624079,1776358249293,-500.0,9.041e-05,2]
[420624080,1776358249302,-1964.26113208,9.041e-05,2]
[420624081,1776358249827,-5000.0,8.111e-05,2]
[420624082,1776358249836,-1197.26886792,9.041e-05,2]
[420624083,1776358249846,-509.17,9.041e-05,2]
[420624084,1776358249856,-824.78,9.041e-05,2]
[420624085,1776358249866,-500.0,9.041e-05,2]
[420624086,1776358249875,-500.0,9.041e-05,2]
[420624087,1776358249885,-500.0,9.041e-05,2]
[420624088,1776358249895,-1244.09,9.041e-05,2]
[420624089,1776358249905,-655.23,9.041e-05,2]
[420624090,1776358249914,-924.37,9.041e-05,2]
[420624091,1776358249924,-500.0,9.041e-05,2]
[420624092,1776358249933,-500.0,9.041e-05,2]
[420624093,1776358249943,-500.0,9.041e-05,2]
[420624094,1776358249952,-2511.17,9.041e-05,2]
[420624095,1776358249962,-500.0,9.041e-05,2]
[420624096,1776358249972,-500.0,9.041e-05,2]
[420624097,1776358249981,-500.0,9.041e-05,2]
[420624098,1776358249992,-500.0,9.041e-05,2]
[420624099,1776358250001,-500.0,9.041e-05,2]
[420624100,1776358250011,-798.21,9.041e-05,2]
[420624101,1776358250021,-500.0,9.041e-05,2]
[420624102,1776358250032,-500.0,9.041e-05,2]
[420624103,1776358250041,-1876.94,9.041e-05,2]
[420624104,1776358250051,-500.0,9.041e-05,2]
[420624105,1776358250063,-500.0,9.041e-05,2]
[420624106,1776358250073,-867.96328717,9.041e-05,2]
[420624107,1776358250085,-94.08671283,9.041e-05,2]
[420624108,1776358250095,-500.0,9.041e-05,2]
[420624109,1776358250104,-500.0,9.041e-05,2]
[420624110,1776358250114,-349.16359512,9.041e-05,2]
[420624111,1776358290830,200.0,0.00016993,120]
[420624112,1776358300764,200.0,8.475e-05,30]
[420624113,1776358301918,200.0,8.475e-05,30]
[420624114,1776358303072,200.0,8.475e-05,30]
[420624116,1776358350762,200.0,0.0002096,120]
[420624118,1776358395375,150.0,9e-05,30]
[420624123,1776358525497,512.0,0.0002031,120]
[420624124,1776358527290,512.0,0.00021326,120]
[420624125,1776358528444,512.0,0.00022392,120]
[420624126,1776358530135,512.0,0.00023512,120]
[420624127,1776358530871,172.0,0.00020902,120]
[420624128,1776358532135,172.0,0.00021948,120]
[420624129,1776358533399,172.0,0.00023045,120]
[420624130,1776358534892,172.0,0.00024197,120]
[420624132,1776358623062,5000.0,0.00024657,120]
[420624136,1776358761385,1000.0,0.00024657,120]
[420624139,1776358807075,171.0,0.0002425,120]
[420624140,1776358838717,1000.0,0.00024657,120]
[420624141,1776358849219,1341.11,0.00024657,120]
[420624142,1776358857839,1000.0,0.00024657,120]
[420624143,1776358862129,-3239.9026803,5e-05,2]
[420624144,1776358868122,1000.0,0.00024657,120]
[420624146,1776358950762,200.0,0.00024084,120]
[420624149,1776359016664,742.18,0.00024658,120]
[420624151,1776359059330,-1838.0,4.95e-05,2]
[420624152,1776359107011,172.0,0.00024578,120]
[420624156,1776359122829,-3162.0,4.95e-05,2]
[420624157,1776359122852,-1838.0,5e-05,2]
[420624170,1776359163488,-5000.0,4.95e-05,2]
[420624171,1776359204550,499.95,0.00024658,120]
[420624222,1776359432515,-369.945,4.9e-05,2]
[420624391,1776359438913,-473.57376399,4.9e-05,2]
[420624402,1776359440808,-4156.48123601,4.9e-05,2]
[420624403,1776359440818,-359.16874227,4.975e-05,2]
[420624404,1776359440828,-578.21304232,5e-05,2]
[420624405,1776359440837,-423.81911588,6.975e-05,2]
[420624406,1776359440846,-3160.0345643,7.439e-05,2]
[420624407,1776359440856,-200.0,7.754e-05,2]
[420624408,1776359440865,-200.0,7.754e-05,2]
[420624409,1776359440874,-200.0,7.754e-05,2]
[420624410,1776359440883,-200.0,7.754e-05,2]
[420624411,1776359440892,-200.0,7.754e-05,7]
[420624412,1776359440902,-200.0,7.754e-05,7]
[420624413,1776359440911,-200.0,7.754e-05,7]
[420624414,1776359440921,-200.0,7.754e-05,7]
[420624415,1776359440931,-200.0,7.754e-05,7]
[420624416,1776359440940,-200.0,7.754e-05,7]
[420624417,1776359440950,-200.0,7.754e-05,7]
[420624418,1776359440959,-172.92572073,7.93e-05,2]
[420624419,1776359440968,-2208.0,8.087e-05,2]
[420624420,1776359440978,-645.0,8.087e-05,2]
[420624421,1776359440987,-1408.0,8.087e-05,2]
[420624422,1776359440996,-441.0,8.087e-05,2]
[420624423,1776359441005,-739.0,8.087e-05,2]
[420624424,1776359441014,-184.0,8.087e-05,2]
[420624425,1776359441023,-20000.0,8.119e-05,2]
[420624426,1776359441033,-209.10042155,8.175e-05,2]
[420624427,1776359441042,-2150.738,8.214e-05,2]
[420624428,1776359441051,-453.0467142,8.218e-05,2]
[420624429,1776359441060,-500.0,8.218e-05,2]
[420624430,1776359441069,-500.0,8.218e-05,2]
[420624431,1776359441078,-500.0,8.218e-05,2]
[420624432,1776359441087,-500.0,8.218e-05,2]
[420624433,1776359441097,-500.0,8.218e-05,2]
[420624434,1776359441106,-500.0,8.218e-05,2]
[420624435,1776359441116,-306.24805039,8.218e-05,2]
[420624436,1776359441125,-500.0,8.218e-05,2]
[420624437,1776359441135,-500.0,8.218e-05,2]
[420624438,1776359441144,-500.0,8.218e-05,2]
[420624439,1776359441154,-300.0,8.218e-05,2]
[420624440,1776359441163,-1169.0452,8.219e-05,2]
[420624441,1776359441173,-500.0,8.219e-05,2]
[420624442,1776359441183,-500.0,8.219e-05,2]
[420624443,1776359441192,-781.19,8.219e-05,2]
[420624444,1776359441202,-500.0,8.219e-05,2]
[420624445,1776359441212,-1190.4,8.219e-05,2]
[420624446,1776359441221,-500.0,8.219e-05,2]
[420624447,1776359441231,-1539.3,8.219e-05,2]
[420624448,1776359441240,-534.3,8.219e-05,2]
[420624449,1776359441249,-500.0,8.219e-05,2]
[420624450,1776359441258,-500.0,8.219e-05,2]
[420624451,1776359441268,-528.66385011,8.219e-05,2]
[420624452,1776359441277,-2634.61,8.219e-05,2]
[420624453,1776359441286,-500.0,8.219e-05,2]
[420624454,1776359441295,-687.32,8.219e-05,2]
[420624455,1776359441304,-500.0,8.219e-05,2]
[420624456,1776359441314,-665.17,8.219e-05,2]
[420624457,1776359441323,-1564.11,8.219e-05,2]
[420624458,1776359441335,-546.03,8.219e-05,2]
[420624459,1776359441344,-500.0,8.219e-05,2]
[420624460,1776359441354,-801.71,8.219e-05,2]
[420624461,1776359441363,-595.78243954,8.219e-05,2]
[420624462,1776359441372,-752.76,8.219e-05,2]
[420624463,1776359441381,-1085.74,8.219e-05,2]
[420624464,1776359441390,-500.0,8.219e-05,2]
[420624465,1776359441399,-772.83,8.219e-05,2]
[420624466,1776359441408,-500.0,8.219e-05,2]
[420624467,1776359441417,-531.13,8.219e-05,2]
[420624468,1776359441426,-500.0,8.219e-05,2]
[420624469,1776359441435,-500.0,8.219e-05,2]
[420624470,1776359441444,-606.19,8.219e-05,2]
[420624471,1776359441453,-536.29,8.219e-05,2]
[420624472,1776359441463,-500.0,8.219e-05,2]
[420624473,1776359441472,-580.66,8.219e-05,2]
[420624474,1776359441481,-576.53883411,8.219e-05,2]
[420624475,1776359441491,-500.0,8.219e-05,2]
[420624476,1776359441500,-533.75,8.219e-05,2]
[420624477,1776359441510,-500.0,8.219e-05,2]
[420624478,1776359441519,-573.74,8.219e-05,2]
[420624479,1776359441528,-1234.55,8.219e-05,2]
[420624480,1776359441537,-500.0,8.219e-05,2]
[420624481,1776359441547,-500.0,8.219e-05,2]
[420624482,1776359441556,-500.0,8.219e-05,2]
[420624483,1776359441566,-1036.74,8.219e-05,2]
[420624484,1776359441575,-2092.64,8.219e-05,2]
[420624485,1776359441585,-590.6,8.219e-05,2]
[420624486,1776359441594,-830.9,8.219e-05,2]
[420624487,1776359441603,-583.88,8.219e-05,2]
[420624488,1776359441612,-500.0,8.219e-05,2]
[420624489,1776359441621,-500.0,8.219e-05,2]
[420624490,1776359441630,-550.7601488,8.219e-05,2]
[420624491,1776359441639,-696.94,8.219e-05,2]
[420624492,1776359441648,-500.0,8.219e-05,2]
[420624493,1776359441657,-500.0,8.219e-05,2]
[420624494,1776359441666,-500.0,8.219e-05,2]
[420624495,1776359441676,-500.0,8.219e-05,2]
[420624496,1776359441685,-525.33157236,8.219e-05,2]
[420624497,1776359441695,-500.0,8.219e-05,2]
[420624498,1776359441704,-500.0,8.219e-05,2]
[420624499,1776359441714,-500.0,8.219e-05,2]
[420624500,1776359441723,-500.0,8.219e-05,2]
[420624501,1776359441732,-500.0,8.219e-05,2]
[420624502,1776359441742,-500.0,8.219e-05,2]
[420624503,1776359441751,-500.0,8.219e-05,2]
[420624504,1776359441760,-500.0,8.219e-05,2]
[420624505,1776359441770,-724.85,8.219e-05,2]
[420624506,1776359441780,-500.0,8.219e-05,2]
[420624507,1776359441789,-500.0,8.219e-05,2]
[420624509,1776359441799,-500.0,8.219e-05,2]
[420624510,1776359441808,-500.0,8.219e-05,2]
[420624511,1776359441817,-1073.77,8.219e-05,2]
[420624512,1776359441826,-500.0,8.219e-05,2]
[420624513,1776359441835,-500.0,8.219e-05,2]
[420624514,1776359441844,-500.0,8.219e-05,2]
[420624516,1776359441854,-500.0,8.219e-05,2]
[420624517,1776359441863,-500.0,8.219e-05,2]
[420624519,1776359441873,-1784.59,8.219e-05,2]
[420624521,1776359441882,-500.0,8.219e-05,2]
[420624522,1776359441891,-520.21,8.219e-05,2]
[420624523,1776359441900,-500.0,8.219e-05,2]
[420624524,1776359441909,-500.0,8.219e-05,2]
[420624525,1776359441917,-557.12,8.219e-05,2]
[420624526,1776359441926,-500.0,8.219e-05,2]
[420624527,1776359441935,-500.0,8.219e-05,2]
[420624528,1776359441945,-1201.27,8.219e-05,2]
[420624529,1776359441954,-500.0,8.219e-05,2]
[420624530,1776359441965,-500.0,8.219e-05,2]
[420624531,1776359441975,-500.0,8.219e-05,2]
[420624532,1776359441984,-500.0,8.219e-05,2]
[420624533,1776359441994,-500.0,8.219e-05,2]
[420624534,1776359442003,-500.0,8.219e-05,2]
[420624535,1776359442012,-1000.0,8.219e-05,2]
[420624536,1776359442022,-3744.72,8.219e-05,2]
[420624537,1776359442031,-500.0,8.219e-05,2]
[420624538,1776359442040,-491.13134416,8.219e-05,2]
[420624539,1776359442211,-0.71980465,8.219e-05,2]
[420624586,1776359443655,-819.51562325,8.219e-05,2]
[420624658,1776359663805,788.94614091,0.000227,120]
[420624659,1776359717400,170.0,0.00023154,120]
[420624660,1776359718441,2178.43,0.0002465,120]
[420624661,1776359718771,170.0,0.00024312,120]
[420624679,1776360313025,9141.49847,0.00024658,120]
[420624683,1776360523043,15000.0,0.00024,120]
[420624684,1776360610348,2000.0,0.00024658,120]
[420624717,1776360632779,2000.0,0.00024658,120]
[420624757,1776360638870,-740.39,7.097e-05,2]
[420624806,1776360639354,-1289.70641936,7.097e-05,2]
[420624809,1776360639366,-2969.90358064,7.097e-05,2]
[420624811,1776360639375,-2841.87182021,7.154e-05,2]
[420624813,1776360639385,-364.69647615,7.168e-05,2]
[420624815,1776360639394,-3338.8506933,7.259e-05,2]
[420624817,1776360639403,-96.47874209,7.354e-05,2]
[420624819,1776360639414,-3626.70358575,7.354e-05,2]
[420624937,1776360643728,-1481.92,7.026e-05,2]
[420624941,1776360645709,2000.0,0.00024658,120]
[420624954,1776360646808,-32.33078708,7.026e-05,2]
[420624955,1776360646818,-437.7603493,7.354e-05,2]
[420624961,1776360654115,2000.0,0.00024658,120]
[420624962,1776360662728,-1280.4148077,7.354e-05,2]
[420624963,1776360662741,-433.65389034,7.354e-05,2]
[420624964,1776360662750,-1280.4148077,7.61e-05,2]
[420624965,1776360679231,5000.0,0.00024658,120]
[420624966,1776360687743,5000.0,0.00024658,120]
[420624967,1776360695456,5000.0,0.00024658,120]
[420624968,1776360698524,200.0,8.113e-05,30]
[420624969,1776360699686,200.0,8.113e-05,30]
[420624970,1776360703385,5000.0,0.00024658,120]
[420624971,1776360713339,10000.0,0.00024658,120]
[420624972,1776360722454,10000.0,0.00024658,120]
[420624973,1776360733020,10000.0,0.00024658,120]
[420624974,1776360749752,4728.0,0.00024658,120]
[420624980,1776361164645,10000.0,0.00024658,120]
[420624981,1776361288389,10000.0,0.00024658,120]
[420624983,1776361320706,836.66,0.00024658,120]
[420624990,1776361573116,500.0,0.00024658,120]
[420624991,1776361598146,500.0,0.00024658,120]
[420624992,1776361599549,500.0,0.00024658,120]
[420624994,1776361601171,500.0,0.00024658,120]
[420624995,1776361602158,500.0,0.00024658,120]
[420624996,1776361603193,500.0,0.00024658,120]
[420624997,1776361604199,500.0,0.00024658,120]
[420624998,1776361605211,500.0,0.00024658,120]
[420624999,1776361606213,500.0,0.00024658,120]
[420625000,1776361607229,500.0,0.00024658,120]
[420625001,1776361608821,500.0,0.00024658,120]
[420625002,1776361609983,500.0,0.00024658,120]
[420625003,1776361611038,500.0,0.00024658,120]
[420625004,1776361612110,500.0,0.00024658,120]
[420625005,1776361613133,500.0,0.00024658,120]
[420625006,1776361614173,500.0,0.00024658,120]
[420625007,1776361615199,500.0,0.00024658,120]
[420625008,1776361616210,500.0,0.00024658,120]
[420625009,1776361617248,500.0,0.00024658,120]
[420625010,1776361618218,500.0,0.00024658,120]
[420625011,1776361619308,500.0,0.00024658,120]
[420625012,1776361620371,500.0,0.00024658,120]
[420625013,1776361621369,500.0,0.00024658,120]
[420625014,1776361622944,500.0,0.00024658,120]
[420625015,1776361623982,500.0,0.00024658,120]
[420625016,1776361625018,500.0,0.00024658,120]
[420625017,1776361641370,150.0,0.00024658,120]
[420625019,1776361756777,1000.0,0.00024657,120]
[420625110,1776361838921,-300.0,6.745e-05,2]
[420625111,1776361838930,-357.40254663,6.9e-05,2]
[420625112,1776361838940,-2332.59745337,7.022e-05,2]
[420625113,1776361838977,-325.80027339,7.022e-05,2]
[420625114,1776361839137,-501.63683754,7.022e-05,2]
[420625115,1776361839146,-324.9182606,7.054e-05,2]